[Event "Titled Tuesday Blitz March 15 Early 2022"]
[White "Kamsky, Gata"]
[Black "Pajeken, Jakob Leon"]
[WhiteFideId "2000024"]
[BlackFideId "12942839"]
[WhiteElo "2645"]
[BlackElo "2351"]
[Result "1-0"]
[Round "04"]
[TimeControl "180+1"]
[Date "2022.03.15"]
[WhiteClock "0:00:59"]
[BlackClock "0:00:03"]

1. e4 {[%clk 0:02:47]}  e5 {[%clk 0:02:59]} 2. Nf3 {[%clk 0:02:47]}  Nc6 {[%clk 0:02:59]} 3. Bb5 {[%clk 0:02:47]}  a6 {[%clk 0:02:59]} 4. Ba4 {[%clk 0:02:46]}  Nf6 {[%clk 0:02:59]} 5. O-O {[%clk 0:02:46]}  Be7 {[%clk 0:03:00]} 6. Re1 {[%clk 0:02:46]}  b5 {[%clk 0:03:00]} 7. Bb3 {[%clk 0:02:47]}  d6 {[%clk 0:03:01]} 8. c3 {[%clk 0:02:47]}  O-O {[%clk 0:03:02]} 9. d4 {[%clk 0:02:47]}  Bg4 {[%clk 0:03:01]} 10. d5 {[%clk 0:02:47]}  Na5 {[%clk 0:03:01]} 11. Bc2 {[%clk 0:02:48]}  c6 {[%clk 0:03:01]} 12. h3 {[%clk 0:02:48]}  Bc8 {[%clk 0:03:02]} 13. dxc6 {[%clk 0:02:48]}  Qc7 {[%clk 0:03:02]} 14. Nbd2 {[%clk 0:02:48]}  Qxc6 {[%clk 0:03:02]} 15. Nf1 {[%clk 0:02:48]}  Be6 {[%clk 0:03:01]} 16. Ng5 {[%clk 0:02:45]}  Bd7 {[%clk 0:03:01]} 17. Ng3 {[%clk 0:02:43]}  h6 {[%clk 0:03:01]} 18. Nf3 {[%clk 0:02:42]}  Rfe8 {[%clk 0:02:56]} 19. Nh4 {[%clk 0:02:39]}  Rac8 {[%clk 0:02:47]} 20. a3 {[%clk 0:02:29]}  Nc4 {[%clk 0:02:33]} 21. Nhf5 {[%clk 0:02:26]}  Bf8 {[%clk 0:02:26]} 22. a4 {[%clk 0:02:25]}  b4 {[%clk 0:01:59]} 23. b3 {[%clk 0:02:24]}  Nb6 {[%clk 0:01:42]} 24. c4 {[%clk 0:02:23]}  Be6 {[%clk 0:01:39]} 25. Qf3 {[%clk 0:02:12]}  Nbd7 {[%clk 0:01:38]} 26. Bd2 {[%clk 0:02:10]}  a5 {[%clk 0:01:37]} 27. Rad1 {[%clk 0:02:09]}  Kh7 {[%clk 0:01:28]} 28. Nf1 {[%clk 0:02:06]}  g6 {[%clk 0:01:20]} 29. N5e3 {[%clk 0:02:05]}  Bg7 {[%clk 0:01:18]} 30. Bc1 {[%clk 0:01:49]}  Nc5 {[%clk 0:01:05]} 31. Nd5 {[%clk 0:01:35]}  Bxd5 {[%clk 0:00:56]} 32. exd5 {[%clk 0:01:35]}  Qc7 {[%clk 0:00:49]} 33. g4 {[%clk 0:01:32]}  e4 {[%clk 0:00:48]} 34. Qf4 {[%clk 0:01:30]}  Qd7 {[%clk 0:00:28]} 35. Ng3 {[%clk 0:01:29]}  Re5 {[%clk 0:00:25]} 36. Bb2 {[%clk 0:01:25]}  g5 {[%clk 0:00:15]} 37. Qd2 {[%clk 0:01:15]}  Re7 {[%clk 0:00:13]} 38. Nf5 {[%clk 0:01:10]}  Ree8 {[%clk 0:00:09]} 39. Nxg7 {[%clk 0:01:07]}  Kxg7 {[%clk 0:00:09]} 40. f3 {[%clk 0:01:05]}  exf3 {[%clk 0:00:07]} 41. Qd4 {[%clk 0:01:03]}  Re5 {[%clk 0:00:07]} 42. Rxe5 {[%clk 0:01:02]}  dxe5 {[%clk 0:00:07]} 43. Qxe5 {[%clk 0:01:02]}  Qd8 {[%clk 0:00:07]} 44. Rf1 {[%clk 0:01:01]}  Nd7 {[%clk 0:00:07]} 45. Qd4 {[%clk 0:01:01]}  Qb6 {[%clk 0:00:06]} 46. Qxb6 {[%clk 0:00:59]}  Nxb6 {[%clk 0:00:07]} 47. Rxf3 {[%clk 0:00:59]}  Nd7 {[%clk 0:00:03]} 48. Bf5 {[%clk 0:00:59]} 1-0


[Site "https://www.chess.com"]

[Event "Titled Tuesday Blitz March 15 Early 2022"]
[White "Kanyamarala, Tarun"]
[Black "Farmani Anosheh, Armin"]
[WhiteFideId "45004714"]
[BlackFideId "24613240"]
[WhiteElo "2075"]
[BlackElo "2289"]
[Result "1-0"]
[Round "04"]
[TimeControl "180+1"]
[Date "2022.03.15"]
[WhiteClock "0:00:05"]
[BlackClock "0:00:01"]

1. d4 {[%clk 0:03:00]}  Nf6 {[%clk 0:02:59]} 2. Bf4 {[%clk 0:03:01]}  d5 {[%clk 0:02:59]} 3. e3 {[%clk 0:03:01]}  c5 {[%clk 0:02:59]} 4. c3 {[%clk 0:02:58]}  Nc6 {[%clk 0:02:59]} 5. Nd2 {[%clk 0:02:58]}  e6 {[%clk 0:02:56]} 6. Ngf3 {[%clk 0:02:55]}  cxd4 {[%clk 0:02:56]} 7. exd4 {[%clk 0:02:54]}  Nh5 {[%clk 0:02:56]} 8. Bg5 {[%clk 0:02:48]}  f6 {[%clk 0:02:55]} 9. Be3 {[%clk 0:02:42]}  Bd6 {[%clk 0:02:52]} 10. g3 {[%clk 0:02:39]}  O-O {[%clk 0:02:45]} 11. Be2 {[%clk 0:02:29]}  f5 {[%clk 0:02:17]} 12. Nh4 {[%clk 0:02:28]}  f4 {[%clk 0:02:17]} 13. Bxh5 {[%clk 0:02:27]}  fxe3 {[%clk 0:02:18]} 14. fxe3 {[%clk 0:02:27]}  Qg5 {[%clk 0:01:59]} 15. Qe2 {[%clk 0:02:01]}  e5 {[%clk 0:01:47]} 16. O-O-O {[%clk 0:01:50]}  g6 {[%clk 0:01:43]} 17. Bf3 {[%clk 0:01:39]}  e4 {[%clk 0:01:43]} 18. Bg2 {[%clk 0:01:31]}  Bg4 {[%clk 0:01:41]} 19. Qb5 {[%clk 0:01:24]}  Bxd1 {[%clk 0:01:31]} 20. Rxd1 {[%clk 0:01:24]}  Ne7 {[%clk 0:01:06]} 21. Bxe4 {[%clk 0:01:20]}  a6 {[%clk 0:00:52]} 22. Qd7 {[%clk 0:01:20]}  Rad8 {[%clk 0:00:50]} 23. Qe6+ {[%clk 0:01:19]}  Kh8 {[%clk 0:00:47]} 24. Bc2 {[%clk 0:01:11]}  Rf6 {[%clk 0:00:39]} 25. Qh3 {[%clk 0:01:10]}  Qxe3 {[%clk 0:00:39]} 26. Kb1 {[%clk 0:01:08]}  Kg7 {[%clk 0:00:36]} 27. Nb3 {[%clk 0:01:03]}  Rf2 {[%clk 0:00:34]} 28. Nc1 {[%clk 0:01:01]}  Rdf8 {[%clk 0:00:25]} 29. Qd7 {[%clk 0:00:54]}  R8f6 {[%clk 0:00:24]} 30. Nd3 {[%clk 0:00:48]}  Rxh2 {[%clk 0:00:21]} 31. Ne5 {[%clk 0:00:38]}  Qxg3 {[%clk 0:00:15]} 32. Nhf3 {[%clk 0:00:17]}  Rf2 {[%clk 0:00:08]} 33. Rg1 {[%clk 0:00:13]}  Qf4 {[%clk 0:00:07]} 34. a3 {[%clk 0:00:07]}  Rxf3 {[%clk 0:00:05]} 35. Nxf3 {[%clk 0:00:07]}  Qxf3 {[%clk 0:00:06]} 36. Re1 {[%clk 0:00:07]}  Kf7 {[%clk 0:00:03]} 37. Qxb7 {[%clk 0:00:07]}  Re6 {[%clk 0:00:03]} 38. Rg1 {[%clk 0:00:05]}  Qf2 {[%clk 0:00:03]} 39. Rc1 {[%clk 0:00:05]}  Re1 {[%clk 0:00:04]} 40. Qxa6 {[%clk 0:00:05]}  Rxc1+ {[%clk 0:00:04]} 41. Kxc1 {[%clk 0:00:05]}  Qe1+ {[%clk 0:00:03]} 42. Bd1 {[%clk 0:00:05]}  Bf4+ {[%clk 0:00:04]} 43. Kc2 {[%clk 0:00:05]}  Qd2+ {[%clk 0:00:05]} 44. Kb1 {[%clk 0:00:05]}  Qxd1+ {[%clk 0:00:05]} 45. Ka2 {[%clk 0:00:06]}  Qf3 {[%clk 0:00:05]} 46. a4 {[%clk 0:00:06]}  Qe3 {[%clk 0:00:02]} 47. a5 {[%clk 0:00:07]}  Qe6 {[%clk 0:00:02]} 48. Qb7 {[%clk 0:00:07]}  Qc8 {[%clk 0:00:02]} 49. Qb5 {[%clk 0:00:05]}  Qc7 {[%clk 0:00:02]} 50. a6 {[%clk 0:00:05]}  Nc8 {[%clk 0:00:02]} 51. b4 {[%clk 0:00:05]}  Nb6 {[%clk 0:00:01]} 52. Qc5 {[%clk 0:00:05]} 1-0


[Site "https://www.chess.com"]

[Event "Titled Tuesday Blitz March 15 Early 2022"]
[White "Kevlishvili, Robby"]
[Black "Fernandez Guillen, Ernesto J."]
[WhiteFideId "1040634"]
[BlackFideId "3512428"]
[WhiteElo "2584"]
[BlackElo "2380"]
[Result "1-0"]
[Round "04"]
[TimeControl "180+1"]
[Date "2022.03.15"]
[WhiteClock "0:00:30"]
[BlackClock "0:00:06"]

1. e4 {[%clk 0:02:59]}  e5 {[%clk 0:02:59]} 2. Nf3 {[%clk 0:03:00]}  Nc6 {[%clk 0:03:00]} 3. Bb5 {[%clk 0:03:00]}  f5 {[%clk 0:03:00]} 4. Nc3 {[%clk 0:03:00]}  fxe4 {[%clk 0:03:00]} 5. Nxe4 {[%clk 0:03:01]}  Nf6 {[%clk 0:03:00]} 6. Nxf6+ {[%clk 0:03:00]}  Qxf6 {[%clk 0:03:01]} 7. Qe2 {[%clk 0:03:00]}  Be7 {[%clk 0:03:02]} 8. Bxc6 {[%clk 0:02:55]}  dxc6 {[%clk 0:03:03]} 9. Nxe5 {[%clk 0:02:54]}  Bf5 {[%clk 0:03:02]} 10. d4 {[%clk 0:02:53]}  O-O-O {[%clk 0:03:03]} 11. c3 {[%clk 0:02:52]}  g5 {[%clk 0:03:02]} 12. O-O {[%clk 0:02:52]}  h5 {[%clk 0:02:57]} 13. Re1 {[%clk 0:02:48]}  Bd6 {[%clk 0:02:55]} 14. Nc4 {[%clk 0:02:43]}  Rde8 {[%clk 0:02:21]} 15. Qxe8+ {[%clk 0:02:30]}  Rxe8 {[%clk 0:02:22]} 16. Rxe8+ {[%clk 0:02:30]}  Kd7 {[%clk 0:02:22]} 17. Nxd6 {[%clk 0:02:21]}  cxd6 {[%clk 0:02:23]} 18. Rg8 {[%clk 0:02:00]}  Bg6 {[%clk 0:01:53]} 19. Bd2 {[%clk 0:01:58]}  a6 {[%clk 0:01:29]} 20. Re1 {[%clk 0:01:54]}  Qf7 {[%clk 0:01:26]} 21. Rge8 {[%clk 0:01:44]}  Qxe8 {[%clk 0:01:03]} 22. Rxe8 {[%clk 0:01:45]}  Bxe8 {[%clk 0:01:02]} 23. Bxg5 {[%clk 0:01:46]}  Bf7 {[%clk 0:01:03]} 24. a3 {[%clk 0:01:45]}  Ke6 {[%clk 0:01:03]} 25. f3 {[%clk 0:01:41]}  Kd5 {[%clk 0:00:51]} 26. b3 {[%clk 0:01:34]}  c5 {[%clk 0:00:51]} 27. dxc5 {[%clk 0:01:03]}  dxc5 {[%clk 0:00:52]} 28. Kf2 {[%clk 0:00:57]}  Ke5 {[%clk 0:00:42]} 29. b4 {[%clk 0:00:55]}  cxb4 {[%clk 0:00:37]} 30. cxb4 {[%clk 0:00:55]}  Kd4 {[%clk 0:00:38]} 31. a4 {[%clk 0:00:49]}  Kc4 {[%clk 0:00:35]} 32. Be7 {[%clk 0:00:45]}  b6 {[%clk 0:00:12]} 33. Ke3 {[%clk 0:00:39]}  a5 {[%clk 0:00:09]} 34. bxa5 {[%clk 0:00:38]}  bxa5 {[%clk 0:00:10]} 35. g4 {[%clk 0:00:34]}  hxg4 {[%clk 0:00:10]} 36. fxg4 {[%clk 0:00:35]}  Kb3 {[%clk 0:00:10]} 37. h4 {[%clk 0:00:31]}  Kxa4 {[%clk 0:00:11]} 38. Kf4 {[%clk 0:00:31]}  Kb5 {[%clk 0:00:10]} 39. Kf5 {[%clk 0:00:31]}  Kc6 {[%clk 0:00:08]} 40. Kf6 {[%clk 0:00:31]}  Be8 {[%clk 0:00:08]} 41. h5 {[%clk 0:00:30]}  Kd5 {[%clk 0:00:06]} 42. h6 {[%clk 0:00:30]} 1-0


[Site "https://www.chess.com"]

[Event "Titled Tuesday Blitz March 15 Early 2022"]
[White "Kuzmin, Roman"]
[Black "Bogumil, Tatiana"]
[WhiteFideId "44134932"]
[BlackFideId "4110579"]
[WhiteElo "1978"]
[BlackElo "1761"]
[Result "0-1"]
[Round "04"]
[TimeControl "180+1"]
[Date "2022.03.15"]
[WhiteClock "0:00:07"]
[BlackClock "0:00:24"]

1. e4 {[%clk 0:03:00]}  e6 {[%clk 0:02:35]} 2. d4 {[%clk 0:03:00]}  d5 {[%clk 0:02:35]} 3. Nc3 {[%clk 0:03:00]}  dxe4 {[%clk 0:02:35]} 4. Nxe4 {[%clk 0:03:01]}  Bd7 {[%clk 0:02:35]} 5. Bd3 {[%clk 0:02:55]}  Bc6 {[%clk 0:02:28]} 6. Nf3 {[%clk 0:02:53]}  Nd7 {[%clk 0:02:28]} 7. O-O {[%clk 0:02:45]}  Ngf6 {[%clk 0:02:28]} 8. Nxf6+ {[%clk 0:02:45]}  Nxf6 {[%clk 0:02:28]} 9. Ne5 {[%clk 0:02:43]}  Bd6 {[%clk 0:02:13]} 10. Nxc6 {[%clk 0:02:41]}  bxc6 {[%clk 0:02:14]} 11. a3 {[%clk 0:02:19]}  a5 {[%clk 0:02:09]} 12. Be3 {[%clk 0:02:03]}  Nd5 {[%clk 0:01:59]} 13. c4 {[%clk 0:02:02]}  Nxe3 {[%clk 0:01:58]} 14. fxe3 {[%clk 0:02:03]}  c5 {[%clk 0:01:54]} 15. Qf3 {[%clk 0:01:40]}  O-O {[%clk 0:01:51]} 16. Rad1 {[%clk 0:01:29]}  Qg5 {[%clk 0:01:46]} 17. g3 {[%clk 0:01:21]}  Rab8 {[%clk 0:01:34]} 18. Rf2 {[%clk 0:01:06]}  h5 {[%clk 0:01:34]} 19. Kg2 {[%clk 0:00:59]}  h4 {[%clk 0:01:28]} 20. Rdf1 {[%clk 0:00:48]}  hxg3 {[%clk 0:01:18]} 21. hxg3 {[%clk 0:00:49]}  cxd4 {[%clk 0:01:18]} 22. exd4 {[%clk 0:00:34]}  c5 {[%clk 0:01:18]} 23. Rh1 {[%clk 0:00:32]}  g6 {[%clk 0:01:15]} 24. d5 {[%clk 0:00:20]}  exd5 {[%clk 0:01:10]} 25. cxd5 {[%clk 0:00:21]}  Kg7 {[%clk 0:01:03]} 26. Rhf1 {[%clk 0:00:15]}  Rb7 {[%clk 0:00:49]} 27. Bc2 {[%clk 0:00:10]}  f6 {[%clk 0:00:38]} 28. Re2 {[%clk 0:00:09]}  Be5 {[%clk 0:00:33]} 29. d6 {[%clk 0:00:09]}  Rxb2 {[%clk 0:00:30]} 30. d7 {[%clk 0:00:07]}  Rd8 {[%clk 0:00:29]} 31. Ba4 {[%clk 0:00:07]}  Rxe2+ {[%clk 0:00:27]} 32. Qxe2 {[%clk 0:00:06]}  Qxg3+ {[%clk 0:00:28]} 33. Kh1 {[%clk 0:00:07]}  Rh8+ {[%clk 0:00:24]} 0-1


[Site "https://www.chess.com"]

[Event "Titled Tuesday Blitz March 15 Early 2022"]
[White "Lou, Yiping"]
[Black "Agrest, Evgenij"]
[WhiteFideId "8603928"]
[BlackFideId "1705024"]
[WhiteElo "2412"]
[BlackElo "2574"]
[Result "1-0"]
[Round "04"]
[TimeControl "180+1"]
[Date "2022.03.15"]
[WhiteClock "0:01:15"]
[BlackClock "0:00:15"]

1. Nf3 {[%clk 0:02:53]}  d5 {[%clk 0:02:56]} 2. b3 {[%clk 0:02:52]}  f6 {[%clk 0:02:54]} 3. d4 {[%clk 0:02:48]}  c5 {[%clk 0:02:52]} 4. e3 {[%clk 0:02:39]}  Nc6 {[%clk 0:02:51]} 5. Bb2 {[%clk 0:02:38]}  a6 {[%clk 0:02:49]} 6. c4 {[%clk 0:02:33]}  e6 {[%clk 0:02:44]} 7. Bd3 {[%clk 0:02:29]}  Nh6 {[%clk 0:02:41]} 8. O-O {[%clk 0:02:29]}  dxc4 {[%clk 0:02:34]} 9. Bxc4 {[%clk 0:02:25]}  b5 {[%clk 0:02:32]} 10. Be2 {[%clk 0:02:23]}  Bb7 {[%clk 0:02:29]} 11. a4 {[%clk 0:02:16]}  bxa4 {[%clk 0:02:19]} 12. Rxa4 {[%clk 0:02:14]}  Be7 {[%clk 0:02:04]} 13. Qc2 {[%clk 0:02:06]}  Nb4 {[%clk 0:01:55]} 14. Qc1 {[%clk 0:01:58]}  Rc8 {[%clk 0:01:35]} 15. Nc3 {[%clk 0:01:49]}  Nf5 {[%clk 0:01:28]} 16. dxc5 {[%clk 0:01:44]}  Bxc5 {[%clk 0:01:25]} 17. Qb1 {[%clk 0:01:38]}  O-O {[%clk 0:01:20]} 18. Bc4 {[%clk 0:01:36]}  Nd5 {[%clk 0:00:59]} 19. e4 {[%clk 0:01:26]}  Nxc3 {[%clk 0:00:44]} 20. Bxe6+ {[%clk 0:01:25]}  Kh8 {[%clk 0:00:43]} 21. Bxc3 {[%clk 0:01:24]}  Ne3 {[%clk 0:00:38]} 22. Bxc8 {[%clk 0:01:20]}  Qxc8 {[%clk 0:00:37]} 23. Rc1 {[%clk 0:01:17]}  Ng4 {[%clk 0:00:35]} 24. Bd4 {[%clk 0:01:17]}  Bxd4 {[%clk 0:00:16]} 25. Rxc8 {[%clk 0:01:16]}  Rxc8 {[%clk 0:00:15]} 26. Rxd4 {[%clk 0:01:15]} 1-0


[Site "https://www.chess.com"]

[Event "Titled Tuesday Blitz March 15 Early 2022"]
[White "Maksimovic, Bojan"]
[Black "Jaskolka, Tomasz"]
[WhiteFideId "14408120"]
[BlackFideId "1170791"]
[WhiteElo "2448"]
[BlackElo "2073"]
[Result "1/2-1/2"]
[Round "04"]
[TimeControl "180+1"]
[Date "2022.03.15"]
[WhiteClock "0:00:04"]
[BlackClock "0:00:04"]

1. Nf3 {[%clk 0:02:58]}  Nf6 {[%clk 0:02:58]} 2. b3 {[%clk 0:02:58]}  d5 {[%clk 0:02:58]} 3. Bb2 {[%clk 0:02:58]}  Bg4 {[%clk 0:02:58]} 4. Ne5 {[%clk 0:02:57]}  Bf5 {[%clk 0:02:58]} 5. e3 {[%clk 0:02:54]}  e6 {[%clk 0:02:56]} 6. Bd3 {[%clk 0:02:54]}  Bg6 {[%clk 0:02:54]} 7. Bxg6 {[%clk 0:02:50]}  hxg6 {[%clk 0:02:54]} 8. d3 {[%clk 0:02:46]}  c6 {[%clk 0:02:54]} 9. Nd2 {[%clk 0:02:45]}  Nbd7 {[%clk 0:02:53]} 10. Ndf3 {[%clk 0:02:43]}  Bd6 {[%clk 0:02:52]} 11. d4 {[%clk 0:02:40]}  Ne4 {[%clk 0:02:43]} 12. O-O {[%clk 0:02:37]}  g5 {[%clk 0:02:25]} 13. g3 {[%clk 0:02:31]}  f6 {[%clk 0:02:22]} 14. Nxd7 {[%clk 0:02:26]}  Qxd7 {[%clk 0:02:22]} 15. c4 {[%clk 0:02:22]}  Qf7 {[%clk 0:02:06]} 16. cxd5 {[%clk 0:02:15]}  exd5 {[%clk 0:01:52]} 17. Kg2 {[%clk 0:02:15]}  g4 {[%clk 0:00:51]} 18. Nd2 {[%clk 0:02:09]}  Qh5 {[%clk 0:00:35]} 19. Rh1 {[%clk 0:02:08]}  Qh3+ {[%clk 0:00:34]} 20. Kg1 {[%clk 0:02:08]}  Ng5 {[%clk 0:00:23]} 21. Qf1 {[%clk 0:02:00]}  Qh5 {[%clk 0:00:22]} 22. Qg2 {[%clk 0:01:58]}  O-O-O {[%clk 0:00:21]} 23. Kf1 {[%clk 0:01:54]}  Nf3 {[%clk 0:00:20]} 24. Ke2 {[%clk 0:01:48]}  Nxd2 {[%clk 0:00:16]} 25. Kxd2 {[%clk 0:01:49]}  Rde8 {[%clk 0:00:16]} 26. Rad1 {[%clk 0:01:35]}  Qf5 {[%clk 0:00:16]} 27. Kc1 {[%clk 0:01:19]}  Qe4 {[%clk 0:00:15]} 28. Qxe4 {[%clk 0:01:14]}  Rxe4 {[%clk 0:00:16]} 29. Kd2 {[%clk 0:01:10]}  Rh3 {[%clk 0:00:16]} 30. Ke2 {[%clk 0:01:10]}  Re8 {[%clk 0:00:16]} 31. Kf1 {[%clk 0:01:08]}  f5 {[%clk 0:00:16]} 32. Kg2 {[%clk 0:01:08]}  g6 {[%clk 0:00:16]} 33. Rde1 {[%clk 0:00:59]}  Kd7 {[%clk 0:00:16]} 34. f3 {[%clk 0:00:53]}  gxf3+ {[%clk 0:00:13]} 35. Kxf3 {[%clk 0:00:52]}  Reh8 {[%clk 0:00:11]} 36. Kg2 {[%clk 0:00:52]}  Ke6 {[%clk 0:00:11]} 37. Bc3 {[%clk 0:00:51]}  g5 {[%clk 0:00:11]} 38. Bd2 {[%clk 0:00:49]}  g4 {[%clk 0:00:11]} 39. Ref1 {[%clk 0:00:50]}  R3h5 {[%clk 0:00:11]} 40. Bc3 {[%clk 0:00:49]}  Bc7 {[%clk 0:00:11]} 41. Bd2 {[%clk 0:00:49]}  Bd6 {[%clk 0:00:12]} 42. a4 {[%clk 0:00:46]}  R8h7 {[%clk 0:00:12]} 43. b4 {[%clk 0:00:46]}  b6 {[%clk 0:00:11]} 44. Rc1 {[%clk 0:00:46]}  Kd7 {[%clk 0:00:12]} 45. b5 {[%clk 0:00:44]}  c5 {[%clk 0:00:11]} 46. dxc5 {[%clk 0:00:41]}  Bxc5 {[%clk 0:00:12]} 47. Rcd1 {[%clk 0:00:40]}  Ke6 {[%clk 0:00:12]} 48. Bc1 {[%clk 0:00:40]}  Ke5 {[%clk 0:00:11]} 49. Bb2+ {[%clk 0:00:23]}  Ke6 {[%clk 0:00:11]} 50. Bd4 {[%clk 0:00:21]}  Kd6 {[%clk 0:00:10]} 51. Rc1 {[%clk 0:00:18]}  Re7 {[%clk 0:00:10]} 52. Rhe1 {[%clk 0:00:11]}  Reh7 {[%clk 0:00:10]} 53. Rh1 {[%clk 0:00:12]}  Re7 {[%clk 0:00:10]} 54. Bxc5+ {[%clk 0:00:02]}  bxc5 {[%clk 0:00:10]} 55. Rhe1 {[%clk 0:00:03]}  Re4 {[%clk 0:00:09]} 56. a5 {[%clk 0:00:02]}  Rh7 {[%clk 0:00:09]} 57. Rb1 {[%clk 0:00:02]}  Rb7 {[%clk 0:00:09]} 58. b6 {[%clk 0:00:02]}  axb6 {[%clk 0:00:09]} 59. a6 {[%clk 0:00:02]}  Rb8 {[%clk 0:00:08]} 60. a7 {[%clk 0:00:03]}  Ra8 {[%clk 0:00:09]} 61. Rxb6+ {[%clk 0:00:04]}  Kc7 {[%clk 0:00:10]} 62. Rb5 {[%clk 0:00:04]}  Kc6 {[%clk 0:00:10]} 63. Ra5 {[%clk 0:00:04]}  Rb4 {[%clk 0:00:10]} 64. Rc1 {[%clk 0:00:04]}  c4 {[%clk 0:00:10]} 65. Rca1 {[%clk 0:00:04]}  Rb7 {[%clk 0:00:10]} 66. Ra6+ {[%clk 0:00:04]}  Kc5 {[%clk 0:00:11]} 67. R1a5+ {[%clk 0:00:04]}  Kb4 {[%clk 0:00:11]} 68. Rxd5 {[%clk 0:00:04]}  Rbxa7 {[%clk 0:00:12]} 69. Rxa7 {[%clk 0:00:05]}  Rxa7 {[%clk 0:00:12]} 70. Rxf5 {[%clk 0:00:05]}  Rc7 {[%clk 0:00:12]} 71. Rf4 {[%clk 0:00:03]}  Kb3 {[%clk 0:00:11]} 72. Rxg4 {[%clk 0:00:02]}  c3 {[%clk 0:00:12]} 73. Rf4 {[%clk 0:00:02]}  c2 {[%clk 0:00:11]} 74. Rf1 {[%clk 0:00:03]}  Rd7 {[%clk 0:00:10]} 75. Rc1 {[%clk 0:00:03]}  Rd1 {[%clk 0:00:09]} 76. Rxc2 {[%clk 0:00:03]}  Kxc2 {[%clk 0:00:10]} 77. Kf3 {[%clk 0:00:03]}  Kd3 {[%clk 0:00:11]} 78. h4 {[%clk 0:00:04]}  Rf1+ {[%clk 0:00:11]} 79. Kg4 {[%clk 0:00:04]}  Kxe3 {[%clk 0:00:10]} 80. h5 {[%clk 0:00:05]}  Ke4 {[%clk 0:00:08]} 81. h6 {[%clk 0:00:04]}  Ke5 {[%clk 0:00:08]} 82. Kg5 {[%clk 0:00:05]}  Ke6 {[%clk 0:00:08]} 83. h7 {[%clk 0:00:02]}  Rh1 {[%clk 0:00:05]} 84. Kg6 {[%clk 0:00:02]}  Rxh7 {[%clk 0:00:02]} 85. Kxh7 {[%clk 0:00:02]}  Kf5 {[%clk 0:00:03]} 86. Kh6 {[%clk 0:00:03]}  Kg4 {[%clk 0:00:03]} 87. Kg6 {[%clk 0:00:04]}  Kxg3 {[%clk 0:00:04]} 1/2-1/2


[Site "https://www.chess.com"]

[Event "Titled Tuesday Blitz March 15 Early 2022"]
[White "Maltsevskaya, Aleksandra"]
[Black "Shimanov, Aleksandr"]
[WhiteFideId "24174041"]
[BlackFideId "4198603"]
[WhiteElo "2241"]
[BlackElo "2636"]
[Result "0-1"]
[Round "04"]
[TimeControl "180+1"]
[Date "2022.03.15"]
[WhiteClock "0:00:35"]
[BlackClock "0:01:45"]

1. Nf3 {[%clk 0:02:49]}  Nf6 {[%clk 0:02:55]} 2. d4 {[%clk 0:02:48]}  g6 {[%clk 0:02:54]} 3. g3 {[%clk 0:02:48]}  Bg7 {[%clk 0:02:54]} 4. Bg2 {[%clk 0:02:48]}  O-O {[%clk 0:02:55]} 5. O-O {[%clk 0:02:49]}  d6 {[%clk 0:02:48]} 6. b3 {[%clk 0:02:48]}  e5 {[%clk 0:02:42]} 7. dxe5 {[%clk 0:02:48]}  dxe5 {[%clk 0:02:42]} 8. Ba3 {[%clk 0:02:37]}  Qxd1 {[%clk 0:02:42]} 9. Rxd1 {[%clk 0:02:37]}  Re8 {[%clk 0:02:43]} 10. Nc3 {[%clk 0:02:34]}  e4 {[%clk 0:02:43]} 11. Nd4 {[%clk 0:02:34]}  a6 {[%clk 0:02:43]} 12. e3 {[%clk 0:02:16]}  Nbd7 {[%clk 0:02:39]} 13. Na4 {[%clk 0:02:09]}  Ne5 {[%clk 0:02:32]} 14. h3 {[%clk 0:02:09]}  b6 {[%clk 0:02:29]} 15. c4 {[%clk 0:02:08]}  Bb7 {[%clk 0:02:26]} 16. Rd2 {[%clk 0:01:59]}  h5 {[%clk 0:02:26]} 17. Rad1 {[%clk 0:01:58]}  h4 {[%clk 0:02:08]} 18. g4 {[%clk 0:01:55]}  Nh7 {[%clk 0:02:07]} 19. c5 {[%clk 0:01:21]}  b5 {[%clk 0:01:51]} 20. c6 {[%clk 0:00:41]}  Nxc6 {[%clk 0:01:50]} 21. Nc5 {[%clk 0:00:41]}  Nxd4 {[%clk 0:01:51]} 22. Nxb7 {[%clk 0:00:40]}  Nf3+ {[%clk 0:01:51]} 23. Bxf3 {[%clk 0:00:40]}  exf3 {[%clk 0:01:52]} 24. Rd7 {[%clk 0:00:38]}  Ng5 {[%clk 0:01:51]} 25. Rxc7 {[%clk 0:00:35]}  Nxh3+ {[%clk 0:01:51]} 26. Kh2 {[%clk 0:00:35]}  Nxf2 {[%clk 0:01:45]} 0-1


[Site "https://www.chess.com"]

[Event "Titled Tuesday Blitz March 15 Early 2022"]
[White "Manon-og, Ramon Jr."]
[Black "Nikulina, Alena"]
[WhiteFideId "5200776"]
[BlackFideId "4172051"]
[WhiteElo "2289"]
[BlackElo "1778"]
[Result "0-1"]
[Round "04"]
[TimeControl "180+1"]
[Date "2022.03.15"]
[WhiteClock "0:00:01"]
[BlackClock "0:00:22"]

1. e4 {[%clk 0:02:56]}  c5 {[%clk 0:00:48]} 2. Nf3 {[%clk 0:02:52]}  d6 {[%clk 0:00:48]} 3. Nc3 {[%clk 0:02:50]}  Nf6 {[%clk 0:00:47]} 4. Bc4 {[%clk 0:02:45]}  e6 {[%clk 0:00:47]} 5. O-O {[%clk 0:02:40]}  a6 {[%clk 0:00:47]} 6. d3 {[%clk 0:02:35]}  b5 {[%clk 0:00:48]} 7. Bb3 {[%clk 0:02:30]}  Bb7 {[%clk 0:00:48]} 8. a3 {[%clk 0:02:21]}  Be7 {[%clk 0:00:49]} 9. Ba2 {[%clk 0:02:19]}  O-O {[%clk 0:00:49]} 10. Bg5 {[%clk 0:02:17]}  h6 {[%clk 0:00:48]} 11. Bh4 {[%clk 0:02:16]}  Nbd7 {[%clk 0:00:43]} 12. Qd2 {[%clk 0:02:12]}  Nb6 {[%clk 0:00:42]} 13. Rfe1 {[%clk 0:02:08]}  Re8 {[%clk 0:00:39]} 14. Re3 {[%clk 0:02:06]}  Ng4 {[%clk 0:00:34]} 15. Bxe7 {[%clk 0:01:58]}  Qxe7 {[%clk 0:00:33]} 16. Re2 {[%clk 0:01:54]}  Nf6 {[%clk 0:00:33]} 17. Rae1 {[%clk 0:01:51]}  b4 {[%clk 0:00:32]} 18. axb4 {[%clk 0:01:48]}  cxb4 {[%clk 0:00:32]} 19. Nd1 {[%clk 0:01:44]}  a5 {[%clk 0:00:32]} 20. Ne3 {[%clk 0:01:36]}  Rac8 {[%clk 0:00:29]} 21. h3 {[%clk 0:01:28]}  Nfd7 {[%clk 0:00:28]} 22. Kh2 {[%clk 0:01:25]}  Nf6 {[%clk 0:00:28]} 23. Ng4 {[%clk 0:01:17]}  Nxg4+ {[%clk 0:00:26]} 24. hxg4 {[%clk 0:01:17]}  d5 {[%clk 0:00:24]} 25. exd5 {[%clk 0:01:15]}  Bxd5 {[%clk 0:00:24]} 26. Bxd5 {[%clk 0:01:05]}  Nxd5 {[%clk 0:00:25]} 27. Kg1 {[%clk 0:00:52]}  Qc7 {[%clk 0:00:24]} 28. c4 {[%clk 0:00:42]}  Nf4 {[%clk 0:00:23]} 29. Re4 {[%clk 0:00:36]}  Ng6 {[%clk 0:00:23]} 30. R1e3 {[%clk 0:00:26]}  Red8 {[%clk 0:00:23]} 31. Re2 {[%clk 0:00:24]}  a4 {[%clk 0:00:23]} 32. R2e3 {[%clk 0:00:24]}  a3 {[%clk 0:00:23]} 33. bxa3 {[%clk 0:00:24]}  bxa3 {[%clk 0:00:24]} 34. Qa2 {[%clk 0:00:24]}  Ra8 {[%clk 0:00:24]} 35. Qa1 {[%clk 0:00:24]}  Nf4 {[%clk 0:00:23]} 36. Qa2 {[%clk 0:00:25]}  Nxd3 {[%clk 0:00:24]} 37. Qa1 {[%clk 0:00:26]}  Nc5 {[%clk 0:00:23]} 38. Re5 {[%clk 0:00:19]}  a2 {[%clk 0:00:22]} 39. Re2 {[%clk 0:00:14]}  Rd1+ {[%clk 0:00:22]} 40. Qxd1 {[%clk 0:00:09]}  a1=Q {[%clk 0:00:22]} 41. Qxa1 {[%clk 0:00:07]}  Rxa1+ {[%clk 0:00:23]} 42. Kh2 {[%clk 0:00:01]}  Nd3 {[%clk 0:00:22]} 43. Kg3 {[%clk 0:00:01]}  Nxe5 {[%clk 0:00:22]} 44. Kh4 {[%clk 0:00:01]}  Nxf3+ {[%clk 0:00:22]} 0-1


[Site "https://www.chess.com"]